bitfinex/quotes_SOLUSD_20250625
["timestamp","ask_amount","ask_price","bid_price","bid_amount"]
[1750888816867,11.87842413,144.26,144.25,0.02]
[1750888819860,5.27883463,144.26,144.25,0.02]
[1750888820062,11.87842413,144.26,144.25,0.02]
[1750888821004,11.87842413,144.26,144.2,0.02]
[1750888821005,26.0,144.23,144.2,0.02]
[1750888821163,6.5995895,144.21,144.2,0.02]
[1750888821359,7.02607421,144.21,144.2,0.02]
[1750888821586,0.42648471,144.17,144.13,0.02]
[1750888821789,6.5995895,144.15,144.13,0.02]
[1750888822089,0.42648471,144.17,144.13,0.02]
[1750888822090,7.02607421,144.14,144.13,0.02]
[1750888822264,1.5814,144.17,144.13,0.02]
[1750888822462,6.5995895,144.15,144.13,0.02]
[1750888824122,0.42648471,144.15,144.13,0.02]
[1750888824292,7.02607421,144.15,144.13,0.02]
[1750888824880,6.5995895,144.14,144.13,0.02]
[1750888825119,7.02607421,144.14,144.13,0.02]
[1750888826902,11.88246383,144.14,144.13,0.02]
[1750888827203,5.28287433,144.14,144.13,0.02]
[1750888827403,7.02607421,144.14,144.13,0.02]
[1750888829016,32.5995895,144.15,144.13,0.02]
[1750888829580,6.5995895,144.15,144.13,0.02]
[1750888829885,11.4556922,144.15,144.13,0.02]
[1750888830102,6.5995895,144.14,144.13,0.02]
[1750888830530,6.88391264,144.14,144.13,0.02]
[1750888830700,7.02607421,144.14,144.13,0.02]
[1750888830903,11.88246383,144.14,144.13,0.02]
[1750888833722,166.13545498,144.16,144.13,0.02]
[1750888833885,7.02607421,144.15,144.13,0.02]
[1750888834911,6.5995895,144.14,144.13,0.02]
[1750888836386,11.45597912,144.14,144.13,0.02]
[1750888836719,37.45597912,144.14,144.13,0.02]
[1750888838915,32.5995895,144.14,144.13,0.02]
[1750888839212,7.02607421,144.15,144.13,0.02]
[1750888840085,214.01598347,144.16,144.13,0.02]
[1750888840086,181.1995895,144.16,144.13,0.02]
[1750888840298,148.6,144.16,144.13,0.02]
[1750888840595,155.1995895,144.16,144.13,0.02]
[1750888844423,160.05532685,144.16,144.13,0.02]
[1750888844626,6.5995895,144.15,144.13,0.02]
[1750888846736,160.05532685,144.16,144.13,0.02]
[1750888847644,155.1995895,144.16,144.13,0.02]
[1750888847814,148.6,144.16,144.13,0.02]
[1750888850508,148.6,144.16,144.13,6.6195895]
[1750888850904,148.6,144.16,144.13,0.02]
[1750888852619,6.5995895,144.15,144.13,0.02]
[1750888853211,6.5995895,144.14,144.13,0.02]
[1750888854542,11.45597912,144.14,144.13,0.02]
[1750888856547,4.85638962,144.14,144.13,0.02]
[1750888856716,181.1995895,144.16,144.13,0.02]
[1750888857540,32.5995895,144.16,144.13,0.02]
[1750888858213,6.5995895,144.17,144.13,6.9581808]
[1750888858450,11.45500819,144.17,144.13,6.9581808]
[1750888859350,32.5995895,144.18,144.13,15.1080703]
[1750888859524,37.45468475,144.18,144.13,8.5084808]
[1750888859725,37.45468475,144.18,144.13,15.1080703]
[1750888860151,30.85509525,144.18,144.13,1.5703]
[1750888860348,6.5995895,144.17,144.13,1.5703]
[1750888861257,30.85509525,144.18,144.13,1.5703]
[1750888861258,30.85509525,144.18,144.13,8.50841185]
[1750888861557,37.45468475,144.18,144.13,15.10800135]
[1750888862658,32.5995895,144.18,144.13,15.10800135]
[1750888862865,37.45469127,144.18,144.13,15.10800135]
[1750888865259,30.85510177,144.18,144.13,15.10800135]
[1750888865430,37.45469127,144.18,144.13,15.10800135]
[1750888867447,30.85510177,144.18,144.13,15.10800135]
[1750888867628,26.0,144.18,144.13,15.10800135]
[1750888868631,148.6,144.19,144.14,25.24923836]
[1750888868832,148.6,144.19,144.17,6.5995895]
[1750888869348,148.6,144.19,144.16,6.5995895]
[1750888869857,148.6,144.19,144.17,6.5995895]
[1750888870042,148.6,144.19,144.16,13.53610334]
[1750888870354,148.6,144.19,144.17,6.5995895]
[1750888871534,148.6,144.19,144.17,18.64964886]
[1750888871863,148.6,144.19,144.17,32.18533211]
[1750888872751,148.6,144.19,144.16,13.53604549]
[1750888873770,4.85441201,144.2,144.16,13.53604549]
[1750888877052,11.45400151,144.2,144.16,6.93645599]
[1750888877546,6.5995895,144.19,144.14,32.18676582]
[1750888878663,6.5995895,144.19,144.14,25.58717632]
[1750888878964,4.8550423,144.18,144.14,6.5995895]
[1750888879546,4.8550423,144.18,144.13,8.50829062]
[1750888879759,11.4546318,144.18,144.13,6.6195895]
[1750888879969,6.5995895,144.17,144.13,0.02]
[1750888880260,6.5995895,144.16,144.13,0.02]
[1750888880761,11.45556316,144.16,144.13,0.02]
[1750888882249,11.88145327,144.17,144.13,0.02]
[1750888884371,6.5995895,144.16,144.13,0.02]
[1750888885068,11.45555923,144.16,144.13,0.02]
[1750888885975,10.52366005,144.16,144.13,0.02]
[1750888898370,5.66769032,144.15,144.13,0.02]
[1750888899278,6.09417503,144.14,144.13,0.02]
[1750888900375,5.28287433,144.14,144.13,0.02]
[1750888900577,10.95056465,144.14,144.13,0.02]
[1750888903368,39.67056465,144.14,144.13,0.02]
[1750888903866,44.81954493,144.14,144.13,0.02]
[1750888904792,44.8165205,144.14,144.13,0.02]
[1750888904958,39.67056465,144.14,144.13,0.02]
[1750888908068,45.37058764,144.14,144.13,0.02]
[1750888908582,39.67056465,144.14,144.13,0.02]
[1750888911275,50.3841106,144.14,144.13,0.02]
[1750888912077,45.24375976,144.14,144.13,0.02]
[1750888912276,39.67056465,144.14,144.13,0.02]
[1750888913695,39.67056465,144.14,144.11,0.02]
[1750888913872,0.42648471,144.11,144.09,1.5019582]
[1750888914069,34.93417503,144.1,144.09,1.5019582]
[1750888914593,40.60186535,144.1,144.09,1.5019582]
[1750888914896,0.42648471,144.09,144.0,14.25593346]
[1750888915070,18.04186535,144.09,144.0,14.25593346]
[1750888915269,41.82574808,144.09,143.98,12.61276046]
[1750888915471,49.83834808,144.09,143.98,18.64964886]
[1750888915667,5.66769032,143.99,143.96,1.6407]
[1750888915873,5.66769032,143.99,143.94,8.46797172]
[1750888915874,28.94,143.98,143.94,8.46797172]
[1750888916089,28.94,143.98,143.88,2.33572363]
[1750888916090,54.94,143.98,143.88,2.33572363]
[1750888916285,5.66769032,143.96,143.89,29.5]
[1750888916476,28.98,143.95,143.93,5.66769032]
[1750888916687,29.08,143.95,143.93,5.66769032]
[1750888916991,0.42648471,143.99,143.89,24.32413648]
[1750888917302,29.32,143.99,143.95,5.66769032]
[1750888917590,17.00916411,144.04,143.98,5.66769032]
[1750888917591,0.42648471,144.03,143.98,5.66769032]
[1750888917786,34.27976117,144.04,144.0,5.66769032]
[1750888917787,29.42,144.04,144.0,5.66769032]
[1750888917985,29.42,144.04,143.98,25.59505794]
[1750888918303,29.42,144.04,144.01,5.66769032]
[1750888918599,0.5,144.03,144.02,5.66769032]
[1750888919501,0.5,144.03,144.02,24.31733918]
[1750888920003,29.48,144.07,144.02,31.26081925]
[1750888920222,29.48,144.07,144.03,5.66769032]
[1750888920405,29.48,144.07,144.04,5.66769032]
[1750888921504,29.48,144.07,144.03,24.31733918]
[1750888921701,29.48,144.07,144.04,6.94251596]
[1750888922319,35.14769032,144.07,144.03,6.94291086]
[1750888922698,29.48,144.07,144.03,6.94291086]
[1750888922896,29.48,144.07,144.03,12.61060118]
[1750888923729,6.62,144.08,144.05,5.66769032]
[1750888923901,6.62,144.08,144.04,5.66769032]
[1750888924810,12.28769032,144.08,144.03,5.66769032]
[1750888925204,17.14613083,144.08,144.0,18.64964886]
[1750888925400,5.66769032,144.05,144.0,31.26163935]
[1750888925589,5.66769032,144.04,144.0,24.31733918]
[1750888925789,10.52745786,144.04,144.0,24.31733918]
[1750888926511,10.52745786,144.04,144.0,5.66769032]
[1750888926710,10.52745786,144.04,143.99,12.61226755]
[1750888926908,10.52745786,144.04,143.99,5.66769032]
[1750888928608,5.66769032,144.03,143.99,5.66769032]
[1750888929213,5.66769032,144.03,143.98,25.59489938]
[1750888929510,5.66769032,144.03,143.99,5.66769032]
[1750888929701,5.66769032,144.03,143.98,25.59489938]
[1750888929702,34.27917168,144.06,144.01,5.66769032]
[1750888929910,39.946862,144.06,144.01,5.66769032]
[1750888930114,5.66769032,144.05,144.01,5.66769032]
[1750888931129,39.946862,144.06,144.01,12.61164342]
[1750888931306,148.6,144.07,144.03,5.66769032]
[1750888931716,5.66769032,144.07,144.02,5.66769032]
[1750888931914,5.66769032,144.07,144.03,5.66769032]
[1750888932109,36.52612976,144.08,144.02,18.64964886]
[1750888932314,5.66769032,144.07,144.03,5.66769032]
[1750888933423,10.52677681,144.06,144.01,12.61164342]
[1750888933628,10.52677681,144.06,144.01,5.66769032]
[1750888933933,10.52677681,144.06,144.0,25.59390238]
[1750888934107,10.52677681,144.06,144.01,5.66769032]
[1750888934929,4.85874921,144.07,144.01,12.61161048]
[1750888935124,5.66769032,144.06,144.01,12.61161048]
[1750888936017,5.66769032,144.06,144.01,5.66769032]
[1750888936329,5.66769032,144.05,144.01,5.66769032]
[1750888936630,5.66769032,144.03,143.98,18.64964886]
[1750888936824,5.66769032,144.03,143.99,5.66769032]
[1750888937008,10.52802309,144.03,143.99,5.66769032]
[1750888941727,148.6,144.04,144.01,5.66769032]
[1750888941926,148.6,144.04,143.99,6.94489709]
[1750888941927,34.25921784,144.06,144.02,5.66769032]
[1750888942917,29.4,144.06,144.03,5.66769032]
[1750888944947,4.85930381,144.06,144.02,24.31733918]
[1750888946469,10.52643953,144.07,144.02,31.26078878]
[1750888947146,10.52643953,144.07,144.02,24.31733918]
[1750888947324,5.66769032,144.06,144.01,12.61156104]
[1750888947830,35.02769032,144.06,144.01,12.61156104]
[1750888948343,39.8870652,144.06,144.01,12.61156104]
[1750888950730,5.66769032,144.05,144.0,6.9442651]
[1750888950930,5.66769032,144.05,144.01,5.66769032]
[1750888951939,39.8870652,144.06,144.01,12.6115338]
[1750888953436,6.68,144.07,144.03,5.66769032]
[1750888953643,6.68,144.07,144.04,5.66769032]
[1750888954542,11.53875661,144.07,144.03,5.66769032]
[1750888954942,4.85875661,144.07,144.03,5.66769032]
[1750888955342,4.85875661,144.07,144.03,12.61066215]
[1750888956464,159.12624518,144.08,144.03,12.61066215]
[1750888956640,177.9,144.08,144.05,5.66769032]
[1750888957457,148.6,144.08,144.05,12.60956476]
[1750888958481,6.68,144.09,144.06,5.66769032]
[1750888959174,6.68,144.09,144.07,5.66769032]
[1750888959673,34.96769032,144.08,144.03,8.49290638]
[1750888959872,6.68,144.09,144.06,5.66769032]
[1750888960262,183.60769032,144.11,144.06,5.66769032]
[1750888960655,183.60769032,144.11,144.07,5.66769032]
[1750888960656,177.94,144.11,144.07,5.66769032]
[1750888961255,148.6,144.11,144.07,5.66769032]
[1750888961651,154.26769032,144.11,144.07,5.66769032]
[1750888961851,159.12512482,144.11,144.06,12.60876465]
[1750888962551,188.44512482,144.11,144.06,12.60876465]
[1750888963453,5.66769032,144.07,143.99,5.04180876]
[1750888963750,26.0,144.09,143.99,3.47080876]
[1750888963751,5.66769032,144.01,143.99,3.47080876]
[1750888963952,5.66769032,144.0,143.99,3.47080876]
[1750888964155,6.09417503,144.0,143.99,3.47080876]
[1750888964353,6.09417503,144.0,143.92,5.66769032]
[1750888964354,26.0,144.03,143.97,5.66769032]
[1750888964664,5.66769032,144.03,143.97,18.64964886]
[1750888964871,5.66769032,143.98,143.93,12.61514623]
[1750888965179,29.42,144.01,143.95,5.66769032]
[1750888965381,26.14216157,144.04,143.99,5.66769032]
[1750888965566,35.10769032,144.04,144.0,5.66769032]
[1750888965886,0.28432314,144.03,143.92,25.59795347]
[1750888966182,0.28432314,144.03,143.96,44.64964886]
[1750888966183,5.66769032,144.02,143.96,44.64964886]
[1750888966375,5.66769032,144.02,143.97,5.66769032]
[1750888966988,32.68,144.05,144.01,5.66769032]
[1750888967163,5.66769032,144.02,143.96,18.64964886]
[1750888967363,0.42648471,144.02,143.96,5.66769032]
[1750888967765,29.48,144.03,143.99,5.66769032]
[1750888967966,32.68,144.05,144.02,5.66769032]
[1750888967967,6.68,144.05,144.02,5.66769032]
[1750888968170,5.66769032,144.03,143.98,7.26059032]
[1750888968382,5.66769032,144.0,143.95,12.614124]
[1750888968690,5.66769032,144.01,143.96,5.66769032]
[1750888969175,5.66769032,143.99,143.95,5.66769032]
[1750888969486,5.66769032,144.0,143.95,5.66769032]
[1750888970366,35.16769032,144.03,143.99,5.66769032]
[1750888970566,35.16769032,144.03,143.98,5.66769032]
[1750888970773,148.6,144.07,144.01,5.66769032]
[1750888971086,0.42648471,144.05,143.97,5.66769032]
[1750888971283,5.66769032,144.02,143.97,5.66769032]
[1750888971487,5.66769032,143.99,143.94,31.26455503]
[1750888971694,5.66769032,143.99,143.95,5.66769032]
[1750888971882,10.52913299,144.0,143.95,5.66769032]
[1750888972387,9.46802889,144.0,143.95,9.46802889]
[1750888972559,9.46802889,144.0,143.96,9.46802889]
[1750888973358,30.86021666,144.03,143.99,9.46802889]
[1750888973563,9.46802889,144.03,143.97,6.94578675]
[1750888973763,9.46802889,144.02,143.97,16.41381564]
[1750888974774,9.46802889,144.01,143.97,16.41381564]
[1750888974974,9.46802889,144.01,143.95,36.01562785]
[1750888974975,14.32880714,144.01,143.96,16.41432345]
[1750888975683,9.46802889,144.0,143.96,9.46802889]
[1750888975863,9.46802889,144.01,143.97,9.46802889]
[1750888976893,148.6,144.03,143.99,9.46802889]
[1750888977400,148.6,144.03,144.0,9.46802889]
[1750888978000,148.6,144.03,143.99,16.41268885]
[1750888978567,41.77262889,144.05,144.0,28.11767775]
[1750888979099,9.46802889,144.05,144.0,28.11767775]
[1750888979387,16.20802889,144.06,144.01,9.46802889]
[1750888979576,9.46802889,144.05,144.01,9.46802889]
[1750888980260,21.06713685,144.06,144.01,16.41185801]
[1750888980464,9.46802889,144.02,143.94,17.36730611]
[1750888980783,9.46802889,144.02,143.97,28.11767775]
[1750888981696,31.28623433,144.05,143.99,16.41295562]
[1750888981866,9.46802889,144.03,143.98,9.46802889]
[1750888982068,30.85974962,144.05,143.94,54.11767775]
[1750888982069,9.46802889,143.99,143.94,54.11767775]
[1750888982377,9.46802889,143.98,143.94,25.59698802]
[1750888982577,9.46802889,144.0,143.95,9.46802889]
[1750888982776,9.46802889,144.01,143.96,9.46802889]
[1750888983096,29.44,144.03,143.95,18.64964886]
[1750888983097,9.46802889,144.03,143.98,9.46802889]
[1750888983300,148.6,144.04,143.99,28.11767775]
[1750888983477,148.6,144.04,144.01,9.46802889]
[1750888983682,9.46802889,144.05,144.01,6.94396222]
[1750888984073,6.74,144.06,144.01,16.41199111]
[1750888984074,16.20802889,144.06,144.01,16.41199111]
[1750888984386,9.46802889,144.05,144.01,16.41199111]
[1750888984590,6.0052,144.08,144.03,9.46802889]
[1750888984800,9.46802889,144.09,144.04,9.46802889]
[1750888984965,9.46802889,144.06,144.01,6.94396222]
[1750888985172,42.73846221,144.1,144.01,16.41199111]
[1750888985173,37.59786303,144.1,144.01,16.41199111]
[1750888985366,9.46802889,144.08,144.04,9.46802889]
[1750888985873,37.59786303,144.1,144.03,6.94299798]
[1750888985874,9.46802889,144.06,144.03,6.94299798]
[1750888986977,9.46802889,144.06,144.02,6.94335349]
[1750888987193,74.75082891,144.1,144.0,46.22934886]
[1750888987194,9.46802889,144.05,144.0,9.46802889]
[1750888987391,35.46802889,144.07,144.02,9.46802889]
[1750888987691,9.46802889,144.07,144.02,9.46802889]
[1750888987905,64.88802889,144.09,144.04,9.46802889]
[1750888988076,35.46802889,144.09,144.04,9.46802889]
[1750888988278,6.74,144.1,144.06,9.46802889]
[1750888988697,6.74,144.1,144.05,18.64964886]
[1750888988876,6.74,144.1,144.06,9.46802889]
[1750888989272,16.20802889,144.1,144.06,9.46802889]
[1750888989591,6.74,144.1,144.05,9.46802889]
[1750888989799,6.74,144.1,144.06,16.40926248]
[1750888989996,6.74,144.1,144.07,9.46802889]
[1750888990299,6.74,144.1,144.06,16.40926248]
[1750888991278,6.74,144.1,144.07,9.46802889]
[1750888991678,6.74,144.1,144.08,9.46802889]
[1750888992072,6.74,144.1,144.06,16.40926248]
[1750888992800,16.20802889,144.1,144.05,9.46802889]
[1750888993101,16.20802889,144.1,144.05,28.11767775]
[1750888993400,9.46802889,144.09,144.05,9.46802889]
[1750888993708,16.20802889,144.1,144.05,9.46802889]
[1750888994076,6.74,144.1,144.07,9.46802889]
[1750888994488,15.59392889,144.12,144.07,9.46802889]
[1750888994683,9.50802889,144.12,144.08,9.46802889]
[1750888995003,0.04,144.12,144.09,9.46802889]
[1750888995173,0.04,144.12,144.11,9.46802889]
[1750888995385,0.04,144.12,144.11,28.11767775]
[1750888996092,0.04,144.12,144.11,35.05682145]
[1750888996481,0.04,144.12,144.11,28.11767775]
[1750888996683,21.06302887,144.19,144.11,28.11767775]
[1750888996889,16.20802889,144.19,144.14,9.46802889]
[1750888997099,21.06276288,144.19,144.15,9.46802889]
[1750888997304,21.06276288,144.19,144.14,9.46802889]
[1750888997706,11.59473399,144.19,144.15,9.46802889]
[1750888997893,9.46802889,144.18,144.14,9.46802889]
[1750888998206,9.46802889,144.17,144.13,9.46802889]
[1750888998911,9.46802889,144.18,144.13,9.46802889]
[1750888999117,14.32320679,144.18,144.14,9.46802889]
[1750888999306,4.8551779,144.18,144.14,9.46802889]
[1750888999790,4.8551779,144.18,144.15,9.46802889]
[1750888999991,4.8551779,144.18,144.14,9.46802889]
[1750889000710,14.32320679,144.18,144.13,28.11767775]
[1750889001523,9.46802889,144.17,144.13,18.64964886]
[1750889001812,9.46802889,144.16,144.11,35.46802889]
[1750889002189,9.46802889,144.16,144.08,25.59023742]
[1750889002190,9.46802889,144.16,144.12,9.46802889]
[1750889002592,9.46802889,144.16,144.11,9.46802889]
[1750889002802,9.46802889,144.13,144.08,18.64964886]
[1750889002995,9.46802889,144.12,144.08,18.64964886]
[1750889003511,9.46802889,144.12,144.08,28.11767775]
[1750889003711,9.46802889,144.09,144.07,3.46960445]
[1750889003891,9.46802889,144.08,144.07,3.46960445]
[1750889004212,9.46802889,144.08,144.05,0.02]
[1750889004394,9.46802889,144.06,144.05,0.02]
[1750889004726,14.32711121,144.07,144.05,0.02]
[1750889004902,9.46802889,144.06,144.05,0.02]
[1750889006914,14.32711538,144.06,144.05,0.02]
[1750889008524,9.46802889,144.06,144.05,0.02]
[1750889009027,14.32711538,144.06,144.05,0.02]
[1750889013829,9.46802889,144.06,144.05,0.02]
[1750889014089,26.0,144.07,144.05,0.02]
[1750889014090,9.46802889,144.07,144.05,0.02]
[1750889014328,9.46802889,144.08,144.05,0.02]
[1750889014549,9.46802889,144.09,144.05,9.48802889]
[1750889014844,30.8578707,144.1,144.05,9.48802889]
[1750889014845,35.46802889,144.1,144.05,9.48802889]
[1750889015028,9.46802889,144.09,144.05,0.02]
[1750889016229,14.32619776,144.09,144.05,0.02]
[1750889018917,9.46802889,144.09,144.05,0.02]
[1750889019122,35.46802889,144.1,144.05,28.13767775]
[1750889019524,9.46802889,144.11,144.06,9.46802889]
[1750889019727,21.06514274,144.12,144.07,9.46802889]
[1750889020034,16.20802889,144.12,144.07,9.46802889]
[1750889020220,6.74,144.12,144.09,9.46802889]
[1750889020739,6.74,144.12,144.08,16.40838473]
[1750889020916,6.74,144.12,144.09,28.11767775]
[1750889021246,14.3244934,144.14,144.09,28.11767775]
[1750889022049,9.46802889,144.13,144.09,28.11767775]
[1750889022633,9.46802889,144.13,144.08,6.94035584]
[1750889022835,14.32481711,144.13,144.08,16.40838473]
[1750889023939,9.46802889,144.13,144.08,16.40838473]
[1750889024840,9.46802889,144.11,144.06,9.46802889]
[1750889025147,148.6,144.14,144.06,9.46802889]
[1750889025148,9.46802889,144.1,144.06,9.46802889]
[1750889025744,9.46802889,144.1,144.05,28.13767775]
[1750889026159,9.46802889,144.08,144.05,0.02]
[1750889026367,9.46802889,144.07,144.05,0.02]
[1750889026674,9.46802889,144.06,144.05,0.02]
[1750889027678,9.46802889,144.07,144.05,0.02]
[1750889028034,9.46802889,144.06,144.05,0.02]
[1750889028356,14.32711538,144.06,144.05,0.02]
[1750889030552,9.46802889,144.06,144.05,0.02]
[1750889031078,6.0565,144.09,144.05,0.02]
[1750889031232,9.46802889,144.08,144.05,0.02]
[1750889032876,9.46802889,144.09,144.05,0.02]
[1750889035040,190.74802889,144.1,144.05,9.48802889]
[1750889035359,9.46802889,144.09,144.05,18.66964886]
[1750889035547,186.13784148,144.1,144.05,18.66964886]
[1750889035747,9.46802889,144.09,144.05,0.02]
[1750889037167,14.32616129,144.09,144.05,0.02]
[1750889037365,9.46802889,144.08,144.05,0.02]
[1750889038475,10.53331918,144.07,144.05,0.02]
[1750889038843,5.67452866,144.06,144.05,0.02]
[1750889040640,10.53361515,144.06,144.05,0.02]
[1750889042645,5.67452866,144.06,144.05,0.02]
[1750889045761,10.53361515,144.06,144.05,0.02]
[1750889047274,10.96009986,144.06,144.05,0.02]
[1750889047774,17.56349986,144.06,144.05,0.02]
[1750889049770,22.70486624,144.06,144.05,0.02]
[1750889052475,0.42648471,144.02,143.99,0.02]
[1750889052671,6.10101337,144.0,143.99,0.02]
[1750889053055,5.67452866,144.0,143.99,0.02]
[1750889053754,10.53563977,144.0,143.99,0.02]
[1750889055778,10.96212448,144.0,143.99,0.02]
[1750889058777,10.53563977,144.0,143.99,0.02]
[1750889058959,10.96212448,144.0,143.99,0.02]
[1750889060058,46.23538542,144.01,143.99,0.02]
[1750889060478,35.7,144.01,143.99,0.02]
[1750889060790,5.67452866,144.0,143.99,0.02]
[1750889061372,6.10101337,144.0,143.99,0.02]
[1750889062692,10.96212448,144.0,143.99,0.02]
[1750889063757,10.96212448,144.0,143.91,38.55386936]
[1750889063758,26.0,143.97,143.9,6.94921318]
[1750889064060,5.67452866,143.95,143.91,18.64964886]
[1750889064265,177.72,143.96,143.89,1.5359]
[1750889064266,5.67452866,143.94,143.89,1.5359]
[1750889064461,5.67452866,143.94,143.89,14.16010307]
[1750889064676,5.67452866,143.94,143.9,5.67452866]
[1750889065186,177.72,143.95,143.9,18.64964886]
[1750889065390,177.72,143.95,143.91,5.67452866]
[1750889066386,188.25735471,143.95,143.9,31.27309026]
[1750889067194,188.25735471,143.95,143.9,6.94891274]
[1750889067395,188.25735471,143.95,143.9,12.6234414]
[1750889067890,188.25735471,143.95,143.93,0.02]
[1750889068475,183.39452866,143.95,143.93,0.02]
[1750889068869,148.6,143.95,143.93,0.02]
[1750889069177,154.27452866,143.95,143.93,0.02]
[1750889069378,159.13736315,143.95,143.93,0.02]
[1750889069989,5.67452866,143.94,143.93,0.02]
[1750889070504,182.56283449,143.95,143.93,0.02]
[1750889070683,5.67452866,143.94,143.93,0.02]
[1750889071603,10.53766607,143.94,143.93,0.02]
[1750889075490,177.7,143.95,143.93,0.02]
[1750889075491,154.27452866,143.95,143.93,0.02]
[1750889076075,148.6,143.95,143.93,0.02]
[1750889076279,34.73452866,143.97,143.93,0.02]
[1750889076502,5.67452866,143.96,143.93,0.02]
[1750889076699,29.06,143.97,143.93,0.02]
[1750889076898,5.67452866,143.96,143.93,0.02]
[1750889077202,29.06,143.97,143.93,0.02]
[1750889077375,5.67452866,143.95,143.93,0.02]
[1750889079481,5.67452866,143.94,143.93,0.02]
[1750889079681,188.17744406,143.95,143.93,0.02]
[1750889080405,183.31452866,143.95,143.93,0.02]
[1750889080599,177.64,143.95,143.93,0.02]
[1750889080803,148.6,143.95,143.93,0.02]
[1750889081814,5.67452866,143.94,143.93,0.02]
[1750889084012,188.31734937,143.95,143.93,0.02]
[1750889085416,5.67452866,143.94,143.93,0.02]
[1750889085814,182.64282071,143.95,143.93,0.02]
[1750889086114,188.31734937,143.95,143.93,0.02]
[1750889087411,5.67452866,143.94,143.93,0.02]
[1750889088615,208.64282071,143.95,143.93,0.02]
[1750889088616,177.78,143.95,143.93,0.02]
[1750889088802,183.45452866,143.95,143.93,0.02]
[1750889089653,188.31737047,143.95,143.93,0.02]
[1750889090217,183.45452866,143.95,143.93,0.02]
[1750889092236,177.78,143.95,143.93,0.02]
[1750889092444,148.6,143.95,143.93,0.02]
[1750889093328,29.16,143.96,143.93,0.02]
[1750889094347,65.69681452,143.97,143.93,0.02]
[1750889095448,0.42648471,143.96,143.93,0.02]
[1750889095649,5.67452866,143.94,143.93,0.02]
[1750889097858,10.53766607,143.94,143.93,0.02]
[1750889099659,18.66746607,143.94,143.93,0.02]
[1750889099855,19.09395078,143.94,143.93,0.02]
[1750889100274,45.09395078,143.94,143.93,0.02]
[1750889100462,50.23037719,143.94,143.93,0.02]
[1750889101240,26.0,143.9,143.87,0.02]
[1750889101440,177.72,143.89,143.87,0.02]
[1750889101644,183.39452866,143.89,143.87,0.02]
[1750889101843,5.67452866,143.88,143.87,0.02]
[1750889103852,6.17452866,143.88,143.87,0.02]
[1750889104675,17.28999407,143.88,143.87,0.02]
[1750889104856,5.67452866,143.85,143.84,0.02]
[1750889105052,34.87452866,143.85,143.84,0.02]
[1750889105555,40.97554203,143.85,143.84,0.02]
[1750889105962,71.84172207,143.85,143.83,0.02]
[1750889106161,17.88905732,143.84,143.83,0.02]
[1750889106574,60.49266475,143.85,143.83,0.02]
[1750889106575,30.86618004,143.85,143.83,0.02]
[1750889106765,47.08905732,143.84,143.83,0.02]
[1750889107650,26.42648471,143.82,143.81,0.02]
[1750889107854,0.42648471,143.81,143.68,36.3145311]
[1750889108162,26.0,143.77,143.69,6.95942654]
[1750889108362,5.67452866,143.71,143.68,8.47643689]
[1750889108550,5.67452866,143.71,143.64,6.96184906]
[1750889108551,5.67452866,143.69,143.64,6.96184906]
[1750889108749,29.2,143.68,143.65,5.67452866]
[1750889108983,29.2,143.71,143.65,26.0]
[1750889109277,29.2,143.71,143.67,5.67452866]
[1750889109456,29.2,143.71,143.67,18.64964886]
[1750889109457,34.87452866,143.71,143.67,18.64964886]
[1750889109854,26.0,143.74,143.68,5.67452866]
[1750889110069,26.0,143.74,143.65,26.0]
[1750889110070,29.22,143.73,143.7,18.64964886]
[1750889110257,36.96835229,143.77,143.72,5.67452866]
[1750889110258,29.22,143.77,143.72,5.67452866]
[1750889110461,29.22,143.79,143.76,18.64964886]
[1750889110963,34.89452866,143.79,143.76,18.64964886]
[1750889111171,29.22,143.79,143.76,18.64964886]
[1750889111365,5.67452866,143.8,143.76,18.64964886]
[1750889112073,61.76,143.81,143.76,25.60562179]
[1750889112372,5.67452866,143.8,143.76,25.60562179]
[1750889112579,29.22,143.79,143.76,25.60562179]
[1750889113765,29.22,143.79,143.76,31.28015045]
[1750889114386,29.22,143.79,143.78,18.64964886]
[1750889114565,5.67452866,143.81,143.78,18.64964886]